fUST/lending_fUST_20250805
["ID","MTS","AMOUNT","RATE_DAILY","PERIOD"]
[377381451,1754379039728,-500.0,0.00030673,5]
[377381453,1754379039737,-500.0,0.00030673,5]
[377381454,1754379039747,-500.0,0.00030673,5]
[377381455,1754379039756,-500.0,0.00030675,7]
[377381456,1754379039765,-500.0,0.00030675,30]
[377381457,1754379039774,-500.0,0.00030675,2]
[377381458,1754379039784,-500.0,0.00030675,2]
[377381459,1754379039793,-500.0,0.00030675,7]
[377381460,1754379039803,-500.0,0.00030675,30]
[377381462,1754379039813,-500.0,0.00030675,15]
[377381463,1754379039824,-500.0,0.00030675,30]
[377381464,1754379039834,-500.0,0.00030675,2]
[377381465,1754379039843,-500.0,0.00030675,30]
[377381466,1754379039854,-500.0,0.00030675,15]
[377381467,1754379039863,-500.0,0.00030675,10]
[377381468,1754379039872,-500.0,0.00030675,10]
[377381469,1754379039882,-157.34,0.00030675,2]
[377381471,1754379039891,-2952.38892682,0.00030683,14]
[377381472,1754379039901,-360.0,0.00030696,2]
[377381473,1754379039910,-1000.0,0.0003088,2]
[377381474,1754379039920,-1000.0,0.00030948,5]
[377381475,1754379039929,-150.0,0.00030973,5]
[377381476,1754379039939,-500.0,0.00030973,5]
[377381477,1754379039949,-500.0,0.00030973,5]
[377381478,1754379039958,-500.0,0.00030973,5]
[377381480,1754379039968,-83715.9923564,0.0003098,2]
[377381481,1754379039977,-75473.16489701,0.0003099,2]
[377381498,1754379040843,-311.34149636,0.00028059,2]
[377381499,1754379040854,-500.0,0.00028059,2]
[377381500,1754379040864,-190.02512602,0.00028059,2]
[377381501,1754379040874,-500.0,0.00028059,2]
[377381502,1754379040883,-500.0,0.00028059,2]
[377381503,1754379040897,-402.63375764,0.00028059,2]
[377381504,1754379040910,-97.36624236,0.00028059,2]
[377381506,1754379040919,-337.63942592,0.00028059,2]
[377381507,1754379040930,-500.0,0.00028059,2]
[377381508,1754379040941,-500.0,0.00028059,2]
[377381509,1754379040950,-500.0,0.00028059,2]
[377381510,1754379040959,-500.0,0.00028059,2]
[377381511,1754379040969,-500.0,0.00028059,2]
[377381512,1754379040978,-394.23529494,0.00028059,2]
[377381513,1754379040990,-105.76470506,0.00028059,2]
[377381515,1754379040999,-500.0,0.00028059,2]
[377381516,1754379041008,-500.0,0.00028059,2]
[377381517,1754379041018,-500.0,0.00028059,2]
[377381518,1754379041027,-500.0,0.00028059,2]
[377381519,1754379041036,-500.0,0.00028059,2]
[377381520,1754379041045,-500.0,0.00028059,2]
[377381521,1754379041056,-286.66932947,0.00028059,2]
[377381522,1754379041065,-1745.86821933,0.0003099,2]
[377381524,1754379041077,-312.99432963,0.0003099,2]
[377381649,1754379048545,-319.35390879,0.000306,30]
[377381650,1754379048558,-10473.32851949,0.000306,30]
[377382168,1754379091261,200.0,0.00029728,120]
[377382984,1754379162113,162.115118,0.00013699,2]
[377382988,1754379162333,162.115118,0.00020951,2]
[377385298,1754379385938,1565.5032615,0.00015,2]
[377385300,1754379386052,1565.50326121,0.00016307,2]
[377385302,1754379386162,1565.50326121,0.00017614,2]
[377385305,1754379386271,1105.44534302,0.00018921,2]
[377385308,1754379386464,460.05791819,0.00018921,2]
[377385310,1754379386610,1565.50326121,0.00020228,2]
[377385312,1754379386658,1565.50326121,0.00021534,2]
[377385359,1754379390916,1565.50326121,0.00022841,2]
[377385579,1754379410374,2340.84827601,0.0003,120]
[377386066,1754379455083,1560.56551734,0.0003,120]
[377386542,1754379500009,1040.37701156,0.0003,120]
[377386762,1754379520489,182.61176556,0.00025178,15]
[377386968,1754379543946,1200.92404462,0.00015,2]
[377386970,1754379544052,1200.92404449,0.00016307,2]
[377386972,1754379544158,1200.92404449,0.00017614,2]
[377386974,1754379544256,1200.92404449,0.00018921,2]
[377386976,1754379544365,1200.92404449,0.00020228,2]
[377386978,1754379544475,1200.92404449,0.00021534,2]
[377386981,1754379544593,1200.92404449,0.00022841,2]
[377386983,1754379544734,1200.92404449,0.00024148,2]
[377386985,1754379544840,1200.92404449,0.00025455,3]
[377386988,1754379544961,1200.92404449,0.00026762,6]
[377386989,1754379545027,693.58467437,0.0003,120]
[377387487,1754379590010,462.38978292,0.0003,120]
[377387937,1754379635008,308.25985528,0.0003,120]
[377388136,1754379654577,1080.91550935,0.00015,2]
[377388138,1754379654700,1080.91550922,0.00016307,2]
[377388141,1754379654921,489.74906902,0.00017614,2]
[377388143,1754379654955,591.1664402,0.00017614,2]
[377388144,1754379655023,1080.91550922,0.00018921,2]
[377388149,1754379655357,1080.91550922,0.00020228,2]
[377388151,1754379655462,1080.91550922,0.00021534,2]
[377388153,1754379655562,1080.91550922,0.00022841,2]
[377388155,1754379655665,1080.91550922,0.00024148,2]
[377388156,1754379655894,1080.91550922,0.00025455,3]
[377388157,1754379655938,1080.91550922,0.00026762,6]
[377388399,1754379680004,205.50657018,0.0003,120]
[377388510,1754379690993,1000.0,0.00027911,30]
[377388588,1754379698501,5000.0,0.00024146,2]
[377388591,1754379698681,3042.1131575,0.00019178,2]
[377388779,1754379717384,341.11,0.00028,30]
[377388804,1754379719776,341.11,0.00029081,30]
[377388806,1754379719842,159.82483,0.00028142,120]
[377388858,1754379724929,205.50657019,0.0003,120]
[377389100,1754379749456,161.0,0.000271,3]
[377389240,1754379763156,10000.0,0.0003,30]
[377391381,1754379930907,151.0,0.00030137,120]
[377391817,1754379975959,720.61033948,0.00015,2]
[377391819,1754379976068,720.61033948,0.00016307,2]
[377391821,1754379976171,720.61033948,0.00017614,2]
[377391823,1754379976286,720.61033948,0.00018921,2]
[377391826,1754379976387,720.61033948,0.00020228,2]
[377391828,1754379976505,36.26014036,0.00021534,2]
[377391829,1754379976536,684.35019912,0.00021534,2]
[377391831,1754379976609,720.61033948,0.00022841,2]
[377391833,1754379976719,720.61033948,0.00024148,2]
[377391835,1754379976824,720.61033948,0.00025455,3]
[377391837,1754379976942,720.61033948,0.00026762,6]
[377392166,1754380010311,265.31,0.00028,30]
[377392172,1754380010757,265.31,0.00028809,30]
[377392177,1754380011168,265.31,0.00029714,30]
[377392857,1754380079512,176.87,0.00029714,30]
[377393490,1754380152074,157.22,0.00029714,30]
[377393744,1754380177590,183.776226,0.00027397,120]
[377393793,1754380182677,494.1159263,0.00015,2]
[377393795,1754380182796,494.11592608,0.00016307,2]
[377393797,1754380182896,494.11592608,0.00017614,2]
[377393806,1754380183679,494.11592608,0.00018921,2]
[377393808,1754380183715,494.11592608,0.00020228,2]
[377393809,1754380183790,494.11592608,0.00021534,2]
[377393812,1754380183984,494.11592608,0.00022841,2]
[377393871,1754380189791,50000.0,0.0003,31]
[377393908,1754380193472,209.2314106,0.0002663,2]
[377393914,1754380193985,266.5778796,0.00026843,2]
[377394279,1754380232153,-300.0,0.00027127,2]
[377394280,1754380232163,-241.0,0.00027127,2]
[377394281,1754380232172,-1200.0,0.00027127,2]
[377394282,1754380232190,-358.73692146,0.00027128,2]
[377394285,1754380232358,-9641.26307854,0.00027128,2]
[377394286,1754380232369,-154.670385,0.00027741,20]
[377394288,1754380232379,-8114.23371603,0.00027794,2]
[377394289,1754380232400,-15873.53313191,0.00027794,2]
[377394290,1754380232411,-912.23315206,0.00027794,2]
[377394291,1754380232421,-238.96684794,0.00027855,2]
[377394346,1754380238041,-500.0,0.00027793,2]
[377394347,1754380238051,-273.97127045,0.00027793,2]
[377394348,1754380238060,-253.59566578,0.00027793,2]
[377394349,1754380238072,-246.40433422,0.00027793,2]
[377394350,1754380238082,-500.0,0.00027793,2]
[377394351,1754380238092,-284.56475433,0.00027793,2]
[377394352,1754380238102,-500.0,0.00027793,2]
[377394353,1754380238113,-500.0,0.00027793,2]
[377394354,1754380238123,-500.0,0.00027793,2]
[377394355,1754380238133,-500.0,0.00027793,2]
[377394357,1754380238143,-500.0,0.00027793,2]
[377394358,1754380238152,-469.67582514,0.00027793,2]
[377394359,1754380238162,-500.0,0.00027793,2]
[377394360,1754380238171,-500.0,0.00027793,2]
[377394361,1754380238181,-500.0,0.00027793,2]
[377394362,1754380238190,-500.0,0.00027793,2]
[377394363,1754380238200,-500.0,0.00027793,2]
[377394364,1754380238209,-500.0,0.00027793,2]
[377394365,1754380238219,-500.0,0.00027793,2]
[377394366,1754380238227,-500.0,0.00027793,2]
[377394367,1754380238237,-500.0,0.00027793,2]
[377394368,1754380238247,-500.0,0.00027793,2]
[377394369,1754380238256,-500.0,0.00027793,2]
[377394371,1754380238266,-500.0,0.00027793,2]
[377394372,1754380238275,-500.0,0.00027793,2]
[377394373,1754380238284,-365.35508631,0.00027793,2]
[377394374,1754380238296,-134.64491369,0.00027793,2]
[377394375,1754380238306,-500.0,0.00027793,2]
[377394376,1754380238315,-500.0,0.00027793,2]
[377394377,1754380238324,-500.0,0.00027793,2]
[377394378,1754380238333,-500.0,0.00027793,2]
[377394379,1754380238343,-500.0,0.00027793,2]
[377394380,1754380238352,-500.0,0.00027793,2]
[377394381,1754380238363,-500.0,0.00027793,2]
[377394383,1754380238373,-498.2,0.00027793,2]
[377394384,1754380238382,-500.0,0.00027793,2]
[377394385,1754380238392,-500.0,0.00027793,2]
[377394386,1754380238402,-500.0,0.00027793,2]
[377394387,1754380238411,-500.0,0.00027793,2]
[377394388,1754380238420,-431.07818428,0.00027793,2]
[377394389,1754380238436,-68.92181572,0.00027793,2]
[377394390,1754380238445,-394.15821406,0.00027855,2]
[377394391,1754380238454,-218.03838423,0.000279,2]
[377394392,1754380238463,-163.3,0.00027906,15]
[377394393,1754380238472,-163.3,0.00028006,15]
[377394394,1754380238482,-380.0,0.00028009,2]
[377394395,1754380238491,-745.90695,0.00028009,2]
[377394397,1754380238501,-200.0,0.00028062,15]
[377394398,1754380238510,-163.3,0.00028106,15]
[377394399,1754380238519,-159.82483,0.00028142,2]
[377394400,1754380238528,-154.670385,0.00028161,20]
[377394401,1754380238539,-162.115118,0.00028203,2]
[377394402,1754380238548,-163.3,0.00028206,15]
[377394403,1754380238557,-163.3,0.00028306,15]
[377394404,1754380238567,-163.3,0.00028406,15]
[377394405,1754380238576,-163.3,0.00028506,15]
[377394406,1754380238585,-154.670385,0.00028582,20]
[377394407,1754380238594,-156.46911,0.00028582,20]
[377394408,1754380238603,-163.3,0.00028606,15]
[377394410,1754380238613,-163.38879687,0.00028706,15]
[377394411,1754380238623,-176.090309,0.0002899,2]
[377394412,1754380238632,-420.0,0.00029323,2]
[377394413,1754380238641,-613.0,0.00029452,2]
[377394414,1754380238651,-842.25606042,0.00029748,2]
[377394415,1754380238660,-12655.02535889,0.00029855,2]
[377394416,1754380238669,-800.0,0.00030263,2]
[377394417,1754380238678,-168.549,0.00030339,25]
[377394418,1754380238688,-306.23232784,0.00030473,5]
[377394419,1754380238697,-500.0,0.00030473,5]
[377394420,1754380238707,-502.19209448,0.00030473,5]
[377394421,1754380238716,-194.35668038,0.00030479,2]
[377394422,1754380238726,-1862.34293061,0.000306,30]
[377394424,1754380238735,-1147.0,0.0003061,120]
[377394425,1754380238745,-210.0,0.0003061,120]
[377394426,1754380238755,-1147.0,0.0003062,120]
[377394427,1754380238764,-210.0,0.0003062,120]
[377394428,1754380238774,-1934.8,0.0003063,3]
[377394429,1754380238783,-483.7,0.0003063,3]
[377394430,1754380238792,-241.85,0.0003063,3]
[377394431,1754380238802,-1147.0,0.0003063,120]
[377394432,1754380238812,-210.0,0.0003063,120]
[377394433,1754380238821,-2919.89860004,0.00030636,2]
[377394434,1754380238834,-1265.90101779,0.00030636,2]
[377394436,1754380238845,-3479.79354692,0.00030636,2]
[377394437,1754380238855,-460.28,0.0003064,10]
[377394438,1754380238864,-5000.0,0.00030646,3]
[377394439,1754380238873,-4300.0,0.0003065,30]
[377394440,1754380238882,-160.0,0.00030671,2]
[377394441,1754380238891,-524.1944747,0.00030673,5]
[377394442,1754380238901,-608.48970317,0.00030757,5]
[377394443,1754380238910,-160.0,0.0003098,2]
[377394444,1754380238919,-216.4206905,0.0003098,2]
[377394445,1754380238929,-215.21874788,0.0003098,2]
[377394446,1754380238939,-967.4,0.0003098,3]
[377394447,1754380238948,-725.6,0.0003098,3]
[377394448,1754380238957,-209.27995615,0.00030989,2]
[377394450,1754380238967,-100000.0,0.0003099,2]
[377394451,1754380238978,-1000.0,0.00031021,5]
[377394452,1754380238988,-1000.0,0.000312,2]
[377394453,1754380238997,-260.0,0.00031219,2]
[377394454,1754380239006,-250.0,0.00031433,2]
[377394455,1754380239016,-200.0,0.00031438,15]
[377394456,1754380239026,-200.0,0.00031438,15]
[377394457,1754380239036,-200.0,0.00031438,15]
[377394458,1754380239045,-592.58029263,0.00031559,2]
[377394459,1754380239055,-2370.32117053,0.00031559,2]
[377394460,1754380239064,-5327.88941106,0.00031559,2]
[377394461,1754380239073,-1331.73467972,0.00031568,5]
[377394463,1754380239082,-19979.0,0.00031648,60]
[377394464,1754380239092,-587.0,0.00031698,2]
[377394465,1754380239102,-360.0,0.00031767,2]
[377394466,1754380239112,-500.0,0.00031943,5]
[377394467,1754380239122,-501.89643264,0.00031943,5]
[377394468,1754380239131,-183.776226,0.00031963,120]
[377394469,1754380239141,-3869.6,0.00032,3]
[377394471,1754380239248,-967.4,0.00032,3]
[377394472,1754380239258,-483.7,0.00032,3]
[377394473,1754380239269,-160.0,0.00032,3]
[377394474,1754380239279,-460.0,0.00032315,2]
[377394475,1754380239289,-1934.8,0.0003235,3]
[377394476,1754380239299,-200.0,0.00032774,120]
[377394477,1754380239308,-560.0,0.00032863,2]
[377394478,1754380239318,-500.0,0.00032873,5]
[377394480,1754380239327,-500.0,0.00032873,5]
[377394481,1754380239337,-500.0,0.00032873,5]
[377394482,1754380239346,-4185.79961783,0.0003288,2]
[377394483,1754380239357,-3479.79354692,0.0003288,2]
[377394484,1754380239366,-3697.0,0.00032889,120]
[377394485,1754380239376,-4185.79961783,0.0003289,2]
[377394486,1754380239386,-3479.79354692,0.0003289,2]
[377394487,1754380239396,-1794.45,0.000329,7]
[377394488,1754380239406,-35257.66,0.000329,14]
[377394489,1754380239415,-218.03838423,0.000329,2]
[377394490,1754380239424,-500.0,0.00032973,5]
[377394491,1754380239433,-500.0,0.00032973,5]
[377394492,1754380239443,-4185.79961783,0.0003298,2]
[377394494,1754380239452,-3479.79354692,0.0003298,2]
[377394495,1754380239463,-511.36,0.000333,7]
[377394496,1754380239473,-1851.48,0.000333,14]
[377394497,1754380239482,-660.0,0.00033411,2]
[377394498,1754380239492,-1036.50230585,0.00033521,5]
[377394499,1754380239501,-200.0,0.000336,120]
[377394500,1754380239511,-213.22464,0.000336,120]
[377394501,1754380239520,-200.0,0.000336,120]
[377394502,1754380239530,-4185.79961783,0.00033678,2]
[377394503,1754380239540,-3479.79354692,0.00033678,2]
[377394504,1754380239550,-3697.0,0.00033711,120]
[377394505,1754380239560,-13458.91985086,0.0003384,2]
[377394506,1754380239569,-4185.79961783,0.0003393,2]
[377394508,1754380239579,-3479.79354692,0.0003393,2]
[377394509,1754380239588,-4185.79961783,0.0003394,2]
[377394511,1754380239597,-3479.79354692,0.0003394,2]
[377394512,1754380239607,-2183.31810187,0.0003395,2]
[377394513,1754380239616,-151.0,0.0003395,2]
[377394514,1754380239626,-151.0,0.0003395,2]
[377394515,1754380239635,-151.0,0.0003395,2]
[377394516,1754380239644,-151.0,0.0003395,2]
[377394517,1754380239653,-151.0,0.0003395,2]
[377394518,1754380239662,-151.0,0.0003395,2]
[377394519,1754380239672,-151.0,0.0003395,2]
[377394520,1754380239682,-151.0,0.0003395,2]
[377394522,1754380239692,-151.0,0.0003395,2]
[377394523,1754380239701,-151.0,0.0003395,2]
[377394524,1754380239710,-22188.54324152,0.0003395,2]
[377394525,1754380239720,-151.0,0.0003395,2]
[377394526,1754380239729,-154.09101441,0.0003395,2]
[377394527,1754380239738,-151.0,0.0003395,2]
[377394528,1754380239748,-151.0,0.0003395,2]
[377394529,1754380239758,-151.0,0.0003395,2]
[377394530,1754380239767,-151.0,0.0003395,2]
[377394531,1754380239782,-151.0,0.0003395,2]
[377394532,1754380239791,-151.0,0.0003395,2]
[377394533,1754380239800,-151.0,0.0003395,2]
[377394534,1754380239810,-252.08147018,0.0003395,2]
[377394536,1754380239819,-151.0,0.0003395,2]
[377394538,1754380239829,-151.0,0.0003395,2]
[377394539,1754380239838,-151.0,0.0003395,2]
[377394540,1754380239852,-151.0,0.0003395,2]
[377394542,1754380239861,-151.0,0.0003395,2]
[377394544,1754380239870,-250.0,0.0003395,2]
[377394545,1754380239880,-151.0,0.0003395,2]
[377394546,1754380239889,-250.0,0.0003395,2]
[377394547,1754380239898,-151.0,0.0003395,2]
[377394548,1754380239907,-250.0,0.0003395,2]
[377394549,1754380239917,-151.0,0.0003395,2]
[377394550,1754380239926,-151.0,0.0003395,2]
[377394552,1754380239937,-151.0,0.0003395,2]
[377394553,1754380239946,-500.0,0.0003395,2]
[377394554,1754380239956,-151.0,0.0003395,2]
[377394555,1754380239966,-250.0,0.0003395,2]
[377394556,1754380239976,-500.0,0.0003395,2]
[377394557,1754380239986,-151.0,0.0003395,2]
[377394558,1754380239995,-250.0,0.0003395,2]
[377394559,1754380240004,-500.0,0.0003395,2]
[377394560,1754380240014,-250.0,0.0003395,2]
[377394561,1754380240024,-151.0,0.0003395,2]
[377394562,1754380240034,-500.0,0.0003395,2]
[377394563,1754380240044,-250.0,0.0003395,2]
[377394565,1754380240054,-151.0,0.0003395,2]
[377394566,1754380240063,-500.0,0.0003395,2]
[377394567,1754380240073,-151.0,0.0003395,2]
[377394568,1754380240083,-250.0,0.0003395,2]
[377394569,1754380240092,-500.0,0.0003395,2]
[377394570,1754380240102,-151.0,0.0003395,2]
[377394571,1754380240112,-500.0,0.0003395,2]
[377394572,1754380240122,-250.0,0.0003395,2]
[377394573,1754380240131,-151.0,0.0003395,2]
[377394574,1754380240141,-250.0,0.0003395,2]
[377394575,1754380240150,-151.0,0.0003395,2]
[377394576,1754380240160,-500.0,0.0003395,2]
[377394578,1754380240170,-250.0,0.0003395,2]
[377394579,1754380240179,-500.0,0.0003395,2]
[377394580,1754380240189,-500.0,0.0003395,2]
[377394581,1754380240198,-500.0,0.0003395,2]
[377394582,1754380240208,-300.0,0.0003395,2]
[377394583,1754380240217,-300.0,0.0003395,2]
[377394584,1754380240227,-165.30763314,0.0003395,2]
[377394585,1754380240237,-580.0,0.00033959,2]
[377394586,1754380240247,-503.5094732,0.00033973,5]
[377394587,1754380240256,-150.0,0.00033973,5]
[377394588,1754380240265,-500.0,0.00033973,5]
[377394589,1754380240275,-502.27320293,0.00033973,5]
[377394590,1754380240284,-275.76878478,0.00033973,5]
[377394592,1754380240294,-500.0,0.00033973,5]
[377394593,1754380240303,-500.0,0.00033973,5]
[377394594,1754380240312,-500.0,0.00033973,5]
[377394595,1754380240321,-500.0,0.00033973,5]
[377394596,1754380240330,-638.96123894,0.00033973,2]
[377394597,1754380240340,-8371.59923566,0.0003398,2]
[377394598,1754380240349,-6959.58709384,0.0003398,2]
[377394599,1754380240359,-2264.10087164,0.00034005,2]
[377394600,1754380240369,-2347.87260389,0.0003406,2]
[377394601,1754380240379,-500.0,0.0003408,5]
[377394602,1754380240388,-502.07498158,0.0003408,5]
[377394604,1754380240397,-500.0,0.0003408,5]
[377394605,1754380240406,-2434.74389024,0.00034115,2]
[377394606,1754380240415,-2524.82941417,0.0003417,2]
[377394607,1754380240424,-2618.2481025,0.00034225,2]
[377394608,1754380240433,-823.0,0.00034264,2]
[377394609,1754380240443,-200.0,0.00034444,15]
[377394610,1754380240452,-200.0,0.00034444,15]
[377394611,1754380240461,-200.0,0.00034444,15]
[377394612,1754380240470,-240.0,0.00034444,15]
[377394613,1754380240480,-4185.79961783,0.00034513,2]
[377394614,1754380240490,-3479.79354692,0.00034513,2]
[377394615,1754380240499,-250.0,0.00034521,5]
[377394616,1754380240509,-500.0,0.00034521,5]
[377394618,1754380240518,-3697.0,0.00034533,120]
[377394619,1754380240527,-509.11562668,0.00034628,5]
[377394620,1754380240537,-200.0,0.00034652,120]
[377394621,1754380240546,-430.7234783,0.000349,30]
[377394622,1754380240555,-430.7234783,0.000349,30]
[377394623,1754380240565,-430.7234783,0.000349,30]
[377394624,1754380240574,-430.0098771,0.000349,30]
[377394625,1754380240584,-430.7234783,0.000349,30]
[377394626,1754380240593,-430.7234783,0.000349,30]
[377394627,1754380240602,-430.7234783,0.000349,30]
[377394628,1754380240611,-430.7234783,0.000349,30]
[377394629,1754380240620,-430.7234783,0.000349,30]
[377394631,1754380240629,-430.7234783,0.000349,30]
[377394632,1754380240639,-430.7234783,0.000349,30]
[377394633,1754380240648,-500.0,0.00034973,5]
[377394634,1754380240657,-150.03939137,0.00035,2]
[377394635,1754380240667,-200.73104502,0.00035068,5]
[377394636,1754380240676,-151.0,0.000351,13]
[377394637,1754380240686,-292.9155566,0.00035174,30]
[377394638,1754380240695,-311.311208,0.00035174,30]
[377394639,1754380240704,-578.9513623,0.00035174,30]
[377394640,1754380240713,-292.9155566,0.00035174,30]
[377394641,1754380240722,-153.0,0.00035174,30]
[377394642,1754380240732,-578.9513623,0.00035174,30]
[377394643,1754380240741,-153.0,0.00035174,30]
[377394645,1754380240750,-292.9155566,0.00035174,30]
[377394646,1754380240759,-578.9513623,0.00035174,30]
[377394647,1754380240769,-153.0,0.00035174,30]
[377394648,1754380240778,-292.9155566,0.00035174,30]
[377394649,1754380240787,-578.9513623,0.00035174,30]
[377394650,1754380240796,-153.0,0.00035174,30]
[377394651,1754380240806,-578.9513623,0.00035174,30]
[377394652,1754380240816,-292.9155566,0.00035174,30]
[377394653,1754380240825,-153.0,0.00035174,30]
[377394654,1754380240834,-153.0,0.00035174,30]
[377394655,1754380240845,-292.9155566,0.00035174,30]
[377394656,1754380240855,-578.9513623,0.00035174,30]
[377394658,1754380240865,-292.9155566,0.00035174,30]
[377394659,1754380240874,-578.9513623,0.00035174,30]
[377394660,1754380240884,-292.9155566,0.00035174,30]
[377394661,1754380240894,-309.7441633,0.00035174,30]
[377394662,1754380240903,-153.0,0.00035174,30]
[377394663,1754380240914,-578.9513623,0.00035174,30]
[377394664,1754380240925,-578.9513623,0.00035174,30]
[377394665,1754380240934,-292.9155566,0.00035174,30]
[377394666,1754380240944,-160.3162146,0.00035174,30]
[377394667,1754380240954,-292.9155566,0.00035174,30]
[377394668,1754380240963,-578.9513623,0.00035174,30]
[377394670,1754380240974,-161.6539585,0.00035174,30]
[377394671,1754380240983,-578.9513623,0.00035174,30]
[377394672,1754380240993,-160.3162146,0.00035174,30]
[377394673,1754380241002,-578.9513623,0.00035174,30]
[377394674,1754380241011,-160.3162146,0.00035174,30]
[377394675,1754380241022,-292.9155566,0.00035174,30]
[377394676,1754380241031,-578.9513623,0.00035174,30]
[377394677,1754380241041,-160.3162146,0.00035174,30]
[377394678,1754380241051,-160.3162146,0.00035174,30]
[377394679,1754380241070,-578.9513623,0.00035174,30]
[377394680,1754380241081,-292.9155566,0.00035174,30]
[377394682,1754380241091,-292.9155566,0.00035174,30]
[377394683,1754380241101,-578.9513623,0.00035174,30]
[377394684,1754380241110,-160.3162146,0.00035174,30]
[377394685,1754380241120,-160.3162146,0.00035174,30]
[377394686,1754380241129,-292.9155566,0.00035174,30]
[377394687,1754380241138,-578.9513623,0.00035174,30]
[377394688,1754380241147,-500.0,0.00035273,5]
[377394689,1754380241157,-500.0,0.00035273,5]
[377394690,1754380241168,-500.0,0.00035273,5]
[377394691,1754380241177,-4185.79961783,0.0003528,2]
[377394692,1754380241188,-3479.79354692,0.0003528,3]
[377394694,1754380241197,-4185.79961783,0.0003529,2]
[377394695,1754380241207,-3479.79354692,0.0003529,3]
[377394696,1754380241216,-154.670385,0.00035292,2]
[377394697,1754380241225,-35257.66,0.000353,14]
[377394698,1754380241235,-4185.79961783,0.00035309,3]
[377394699,1754380241245,-3479.79354692,0.00035309,3]
[377394700,1754380241254,-23009.51934145,0.00035319,2]
[377394701,1754380241264,-3697.0,0.00035355,120]
[377394702,1754380241274,-151.0,0.000354,11]
[377394703,1754380241284,-4185.79961783,0.00035452,3]
[377394704,1754380241294,-3479.79354692,0.00035452,3]
[377394706,1754380241304,-162.115118,0.00035455,2]
[377394707,1754380241313,-150.0,0.00035473,3]
[377394708,1754380241323,-8371.59923566,0.0003548,3]
[377394709,1754380241332,-6959.58709384,0.0003548,3]
[377394710,1754380241342,-12557.3988535,0.0003549,3]
[377394711,1754380241352,-10439.3806408,0.0003549,3]
[377394712,1754380241361,-133551.69826399,0.000355,120]
[377394713,1754380241370,-2001.60380086,0.000355,14]
[377394714,1754380241380,-200.0,0.000355,120]
[377394716,1754380241506,-200.0,0.000355,120]
[377394717,1754380241517,-165.080572,0.000355,14]
[377394718,1754380241526,-151.0,0.000355,14]
[377394720,1754380241535,-151.0,0.000355,14]
[377394721,1754380241545,-162.202135,0.000355,14]
[377394722,1754380241554,-151.0,0.000355,14]
[377394723,1754380241563,-151.0,0.000355,14]
[377394724,1754380241572,-151.0,0.000355,14]
[377394725,1754380241582,-2143.347431,0.000355,14]
[377394726,1754380241591,-2143.347431,0.000355,14]
[377394727,1754380241601,-202.873708,0.000355,14]
[377394728,1754380241610,-151.0,0.000355,14]
[377394729,1754380241620,-202.873708,0.000355,14]
[377394730,1754380241629,-151.0,0.000355,14]
[377394731,1754380241638,-151.0,0.000355,14]
[377394733,1754380241651,-151.0,0.000355,14]
[377394734,1754380241660,-151.0,0.000355,14]
[377394735,1754380241669,-151.0,0.000355,14]
[377394736,1754380241679,-375.760422,0.000355,14]
[377394737,1754380241689,-375.760422,0.000355,14]
[377394738,1754380241698,-151.0,0.000355,14]
[377394739,1754380241708,-151.0,0.000355,14]
[377394740,1754380241717,-151.0,0.000355,14]